bitfinex/quotes_BTCUSD_20251209
["timestamp","ask_amount","ask_price","bid_price","bid_amount"]
[1765322909155,0.0002288,92868.0,92867.0,0.29778474]
[1765322909532,0.0002288,92868.0,92867.0,0.28783474]
[1765322911569,0.0002288,92868.0,92867.0,0.28883474]
[1765322915554,0.0002288,92868.0,92867.0,0.29878474]
[1765322915808,0.0002288,92868.0,92867.0,0.31998873]
[1765322916361,0.00046424,92870.0,92869.0,0.29908409]
[1765322916579,0.00046424,92870.0,92869.0,0.30903409]
[1765322916786,0.00046424,92870.0,92869.0,0.31898409]
[1765322917009,0.00046424,92870.0,92869.0,0.32329394]
[1765322923595,0.00046424,92870.0,92869.0,0.30339394]
[1765322924072,0.00046424,92870.0,92869.0,0.31334394]
[1765322924649,0.00046424,92870.0,92869.0,0.30208995]
[1765322928780,0.00046424,92870.0,92869.0,0.32329394]
[1765322928921,0.00046424,92870.0,92869.0,0.30208995]
[1765322929335,0.00046424,92870.0,92869.0,0.32329394]
[1765322929886,0.00022878,92876.0,92875.0,0.29907018]
[1765322930087,0.00022878,92876.0,92875.0,0.32602018]
[1765322930301,0.00022878,92876.0,92875.0,0.39394092]
[1765322930875,0.00022878,92876.0,92875.0,0.62667018]
[1765322931077,0.00022878,92876.0,92875.0,0.63097948]
[1765322931855,0.00122878,92876.0,92875.0,0.63097948]
[1765322932027,0.00122878,92876.0,92875.0,0.62102948]
[1765322932242,0.00022878,92876.0,92875.0,0.62102948]
[1765322932604,0.00022878,92876.0,92875.0,0.62302948]
[1765322932796,0.00022878,92876.0,92875.0,0.63697948]
[1765322933141,0.00022878,92876.0,92875.0,0.63097948]
[1765322933298,0.00022878,92876.0,92875.0,0.5373025]
[1765322933497,0.00022878,92876.0,92875.0,0.5433025]
[1765322933719,0.00022878,92876.0,92875.0,0.60182549]
[1765322933923,0.00022878,92876.0,92875.0,0.62302948]
[1765322934489,0.00022878,92876.0,92875.0,0.63297948]
[1765322934717,0.00022878,92876.0,92875.0,0.63097948]
[1765322934952,0.00022878,92876.0,92875.0,0.63197948]
[1765322935164,0.00022878,92876.0,92875.0,0.63497948]
[1765322940846,0.00022878,92876.0,92875.0,0.62502948]
[1765322941018,0.00022878,92876.0,92875.0,0.63497948]
[1765322941518,0.00022878,92876.0,92875.0,0.60382549]
[1765322942125,0.00022878,92876.0,92875.0,0.61377549]
[1765322946202,0.00022878,92876.0,92875.0,0.69097384]
[1765322949421,0.0004,92880.0,92879.0,0.56855691]
[1765322949627,0.0004,92880.0,92879.0,0.5997109]
[1765322949822,0.0004,92880.0,92879.0,0.58845691]
[1765322950031,0.0004,92880.0,92879.0,0.59010691]
[1765322950537,0.0004,92880.0,92879.0,0.59110691]
[1765322951046,0.04126,92880.0,92879.0,0.58115691]
[1765322951249,0.04126,92880.0,92879.0,0.58315691]
[1765322951738,0.01685,92880.0,92879.0,0.57155691]
[1765322951882,0.0004,92880.0,92879.0,0.56955691]
[1765322952289,0.0004,92880.0,92879.0,0.57155691]
[1765322952496,0.0004,92880.0,92879.0,0.56955691]
[1765322952691,0.0004,92880.0,92879.0,0.56855691]
[1765322952942,0.0004,92880.0,92879.0,0.58845691]
[1765322953141,0.0004,92880.0,92879.0,0.58945691]
[1765322953542,0.0004,92880.0,92879.0,0.58845691]
[1765322953716,0.0004,92880.0,92879.0,0.6096609]
[1765322953918,0.0004,92880.0,92879.0,0.57155691]
[1765322957606,0.0004,92880.0,92879.0,0.58150691]
[1765322958286,0.0004,92880.0,92879.0,0.6126609]
[1765322959447,0.0004,92880.0,92879.0,0.59145691]
[1765322959673,0.00022874,92884.0,92883.0,0.28784951]
[1765322959898,0.00022874,92884.0,92883.0,0.29779951]
[1765322960141,0.00022874,92884.0,92883.0,0.30774951]
[1765322960971,0.00022874,92884.0,92883.0,0.30874951]
[1765322961611,0.0004,92890.0,92889.0,0.27783373]
[1765322961903,0.0004,92890.0,92889.0,0.30898772]
[1765322962105,0.00046841,92890.0,92889.0,0.28778373]
[1765322963108,0.00046841,92890.0,92889.0,0.27783373]
[1765322963546,0.00046841,92890.0,92889.0,0.27883373]
[1765322963923,0.00046841,92890.0,92889.0,0.27783373]
[1765322964118,0.00046841,92890.0,92889.0,0.27883373]
[1765322965155,0.00046841,92890.0,92889.0,0.30003772]
[1765322966158,0.00046841,92890.0,92889.0,0.30998772]
[1765322966366,0.00046841,92890.0,92889.0,0.31993772]
[1765322970301,0.00022872,92892.0,92891.0,0.28783097]
[1765322970427,0.00022872,92892.0,92891.0,0.30773097]
[1765322971041,0.00022872,92892.0,92891.0,0.33073418]
[1765322972517,0.0004,92900.0,92899.0,0.21528757]
[1765322972690,0.0004,92900.0,92899.0,0.30896455]
[1765322973250,0.0004,92900.0,92899.0,0.33586584]
[1765322973375,0.0004,92900.0,92899.0,0.34806584]
[1765322973572,0.02469,92900.0,92899.0,0.33586584]
[1765322973781,0.02569,92900.0,92899.0,0.33586584]
[1765322973980,0.0024,92900.0,92899.0,0.33586584]
[1765322974208,0.0014,92900.0,92899.0,0.33586584]
[1765322974407,0.0014,92900.0,92899.0,0.27781056]
[1765322975013,0.0004,92900.0,92899.0,0.27781056]
[1765322975213,0.0014,92900.0,92899.0,0.27781056]
[1765322975635,0.0024,92900.0,92899.0,0.27781056]
[1765322978235,0.00262868,92900.0,92899.0,0.27781056]
[1765322980455,0.00262868,92900.0,92899.0,0.28776056]
[1765322980744,0.00262868,92900.0,92899.0,0.29771056]
[1765322981404,0.00262868,92900.0,92899.0,0.30995056]
[1765322981731,0.00262868,92900.0,92899.0,0.30000056]
[1765322981845,0.00062868,92900.0,92899.0,0.31995243]
[1765322982047,0.00062868,92900.0,92899.0,0.29005056]
[1765322982272,0.00062868,92900.0,92899.0,0.27781056]
[1765322982674,0.04104868,92900.0,92899.0,0.27881056]
[1765322983364,0.25633393,92900.0,92899.0,0.06352299]
[1765322983573,0.04104868,92900.0,92899.0,0.06352299]
[1765322983777,0.25633393,92900.0,92899.0,0.06352299]
[1765322983997,0.04104868,92900.0,92899.0,0.06352299]
[1765322984179,0.04104868,92900.0,92899.0,0.27881056]
[1765322984583,0.04104868,92900.0,92899.0,0.06352299]
[1765322984584,0.04204868,92900.0,92899.0,0.06352299]
[1765322985032,0.25733393,92900.0,92899.0,0.06252299]
[1765322985238,0.25733393,92900.0,92894.0,0.01076495]
[1765322985239,0.01076495,92894.0,92890.0,0.0688207]
[1765322985439,0.01224,92893.0,92892.0,0.06252299]
[1765322985638,0.03653,92893.0,92892.0,0.06252299]
[1765322985860,0.03653,92893.0,92891.0,0.06252299]
[1765322986061,0.05266,92893.0,92891.0,0.06252299]
[1765322986276,0.02837,92893.0,92892.0,0.27782678]
[1765322986852,0.22829179,92900.0,92897.0,0.06252299]
[1765322986853,0.01224,92898.0,92897.0,0.06252299]
[1765322987050,0.22752988,92898.0,92897.0,0.06252299]
[1765322987259,0.2152922,92897.0,92896.0,0.06252299]
[1765322987460,0.21529725,92895.0,92894.0,0.06252299]
[1765322987718,0.05118484,92895.0,92893.0,0.06252299]
[1765322987922,0.26648202,92895.0,92893.0,0.06252299]
[1765322988199,0.05118484,92895.0,92892.0,0.27782572]
[1765322988398,0.05118484,92895.0,92894.0,0.06252299]
[1765322988620,0.04042,92895.0,92894.0,0.06252299]
[1765322988804,0.01613,92895.0,92894.0,0.06252299]
[1765322989002,0.01613,92895.0,92894.0,0.27782214]
[1765322989367,0.01613,92895.0,92893.0,0.06252299]
[1765322989980,0.04042,92895.0,92893.0,0.06252299]
[1765322990202,0.23142915,92894.0,92893.0,0.06252299]
[1765322990544,0.04042,92894.0,92893.0,0.27782446]
[1765322990689,0.01076461,92897.0,92895.0,0.06252299]
[1765322990877,0.00161287,92898.0,92897.0,0.06252299]
[1765322991299,0.00161287,92898.0,92897.0,0.27781519]
[1765322992098,0.00261287,92898.0,92897.0,0.27781519]
[1765322992308,0.00361287,92898.0,92897.0,0.27781519]
[1765322993748,0.04403287,92898.0,92897.0,0.06252299]
[1765322993958,0.04403287,92898.0,92896.0,0.06252299]
[1765322994160,0.05266,92897.0,92896.0,0.06252299]
[1765322994558,0.2679522,92897.0,92896.0,0.06252299]
[1765322994780,0.21530268,92893.0,92892.0,0.06252299]
[1765322995019,0.23143268,92893.0,92892.0,0.06252299]
[1765322995197,0.26648775,92893.0,92891.0,0.06252299]
[1765322995425,0.02429,92892.0,92890.0,0.06252299]
[1765322995582,0.02429,92892.0,92891.0,0.2778291]
[1765322995794,0.02429,92892.0,92891.0,0.06252299]
[1765322995999,0.02429,92892.0,92891.0,0.2778291]
[1765322996401,0.02429,92892.0,92891.0,0.06252299]
[1765322997838,0.02429,92892.0,92891.0,0.2778291]
[1765322998965,0.02429,92892.0,92891.0,0.06252299]
[1765322999267,0.23959379,92892.0,92891.0,0.06252299]
[1765322999438,0.25524379,92892.0,92891.0,0.06252299]
[1765323000272,0.01076472,92896.0,92892.0,0.06252299]
[1765323000472,0.21529685,92895.0,92892.0,0.06252299]
[1765323000854,0.02485,92894.0,92892.0,0.06252299]
[1765323001058,0.23095147,92893.0,92892.0,0.06252299]
[1765323001441,0.21530897,92890.0,92889.0,0.06252299]
[1765323001635,0.21530897,92890.0,92889.0,6.841e-05]
[1765323001864,0.27738419,92890.0,92889.0,6.841e-05]
[1765323002071,0.25580897,92890.0,92889.0,6.841e-05]
[1765323003084,0.25680897,92890.0,92889.0,6.841e-05]
[1765323004056,0.25780897,92890.0,92889.0,6.841e-05]
[1765323006834,0.26780527,92890.0,92889.0,6.841e-05]
[1765323007740,0.26680527,92890.0,92889.0,6.841e-05]
[1765323008121,0.26880527,92890.0,92889.0,6.841e-05]
[1765323008327,0.26780527,92890.0,92889.0,6.841e-05]
[1765323008530,0.26580527,92890.0,92889.0,6.841e-05]
[1765323008736,0.3011328,92890.0,92889.0,6.841e-05]
[1765323008940,0.2991328,92890.0,92889.0,6.841e-05]
[1765323009143,0.2981328,92890.0,92889.0,6.841e-05]
[1765323009368,0.3001328,92890.0,92889.0,6.841e-05]
[1765323010121,0.2981328,92890.0,92889.0,6.841e-05]
[1765323010296,0.3001328,92890.0,92889.0,6.841e-05]
[1765323010946,0.3021328,92890.0,92889.0,6.841e-05]
[1765323011169,0.3001328,92890.0,92889.0,6.841e-05]
[1765323011629,0.3021328,92890.0,92889.0,6.841e-05]
[1765323030632,0.26980527,92890.0,92889.0,6.841e-05]
[1765323034469,0.56050527,92890.0,92889.0,6.841e-05]
[1765323034665,0.21537334,92862.0,92861.0,0.05805528]
[1765323034892,0.21537334,92862.0,92853.0,0.01076971]
[1765323034893,0.2153803,92859.0,92858.0,0.06252299]
[1765323035069,0.2153803,92859.0,92858.0,0.06258723]
[1765323035273,0.2540903,92859.0,92858.0,6.424e-05]
[1765323037256,0.2540903,92859.0,92858.0,0.00206424]
[1765323037369,0.2540903,92859.0,92858.0,0.06458723]
[1765323046290,0.25570317,92859.0,92858.0,0.06458723]
[1765323046504,0.25570317,92859.0,92858.0,0.00206424]
[1765323046942,0.26569947,92859.0,92858.0,0.00206424]
[1765323047323,0.26569947,92859.0,92858.0,0.06458723]
[1765323047598,0.26569947,92859.0,92858.0,0.06258723]
[1765323047847,0.27727839,92859.0,92858.0,0.06258723]
[1765323048268,0.27827839,92859.0,92858.0,0.06258723]
[1765323048770,0.27727839,92859.0,92858.0,0.06258723]
[1765323049067,0.27927839,92859.0,92858.0,0.06258723]
[1765323049408,0.28027839,92859.0,92858.0,0.06258723]
[1765323052084,0.25870317,92859.0,92858.0,0.06258723]
[1765323054026,0.00461287,92859.0,92858.0,0.06258723]
[1765323054240,0.00461287,92859.0,92858.0,0.27796985]
[1765323054793,0.00261287,92859.0,92858.0,0.27796985]
[1765323055216,0.00161287,92859.0,92858.0,0.27796985]
[1765323055638,0.00161287,92859.0,92858.0,0.27896985]
[1765323057557,0.01137,92863.0,92862.0,0.21537334]
[1765323057727,0.01137,92863.0,92862.0,0.27789633]
[1765323057964,0.05073,92863.0,92862.0,0.27789633]
[1765323058761,0.05173,92863.0,92862.0,0.27789633]
[1765323059740,0.01237,92863.0,92862.0,0.27789633]
[1765323059938,0.001,92863.0,92862.0,0.28784633]
[1765323060148,0.001,92863.0,92862.0,0.29779633]
[1765323060602,0.0354,92875.0,92873.0,0.27786892]
[1765323060848,0.0354,92875.0,92874.0,0.27786851]
[1765323061045,0.01149,92875.0,92874.0,0.27786851]
[1765323061380,0.03467646,92881.0,92879.0,0.06252299]
[1765323061560,0.25000667,92881.0,92879.0,0.06252299]
[1765323061790,0.25000667,92881.0,92870.0,0.36737548]
[1765323061791,0.22534182,92874.0,92873.0,0.06252299]
[1765323062126,0.21535711,92869.0,92868.0,0.06252299]
[1765323062324,0.21535711,92869.0,92863.0,0.21537076]
[1765323062325,0.02694,92866.0,92864.0,0.06252299]
[1765323062525,0.01149,92866.0,92864.0,0.06252299]
[1765323062723,0.25472853,92865.0,92863.0,0.06252299]
[1765323062942,0.01545,92864.0,92862.0,0.21537307]
[1765323063151,0.02391,92864.0,92863.0,0.27789264]
[1765323063375,0.02391,92864.0,92863.0,0.27789402]
[1765323063701,0.03936,92864.0,92863.0,0.27789402]
[1765323065791,0.03936,92864.0,92863.0,0.27889402]
[1765323074173,0.03936,92864.0,92863.0,0.06352299]
[1765323074413,0.03936,92864.0,92863.0,0.27889402]
[1765323074897,0.07619246,92922.0,92863.0,0.27889402]
[1765323074898,0.22612073,92871.0,92866.0,0.06252299]
[1765323075094,0.22684548,92870.0,92868.0,0.06252299]
[1765323075557,0.21535711,92869.0,92867.0,0.07329107]
[1765323075740,0.23087943,92868.0,92867.0,0.06252299]
[1765323075917,0.21536704,92865.0,92864.0,0.06252299]
[1765323076301,0.25562704,92865.0,92864.0,0.06252299]
[1765323076834,0.25562704,92865.0,92863.0,0.27789337]
[1765323077097,0.05212,92864.0,92862.0,0.06252299]
[1765323077274,0.21537103,92863.0,92862.0,0.06252299]
[1765323077476,0.04026,92863.0,92861.0,0.27789661]
[1765323077686,0.04026,92863.0,92862.0,0.27789633]
[1765323077869,0.04026,92863.0,92862.0,0.06252299]
[1765323078050,0.04026,92863.0,92862.0,0.27789633]
[1765323078430,0.04026,92863.0,92862.0,0.27889633]
[1765323080991,0.25563103,92863.0,92862.0,0.06352299]
[1765323082152,0.25563103,92863.0,92862.0,0.06252299]
[1765323082359,0.2153803,92859.0,92858.0,6.424e-05]
[1765323082547,0.26433552,92859.0,92858.0,6.424e-05]
[1765323082748,0.2154383,92834.0,92833.0,0.05805528]
[1765323083007,0.01077203,92833.0,92830.0,0.06882765]
[1765323083178,0.21544107,92833.0,92832.0,0.06252299]
[1765323083379,0.21544107,92833.0,92829.0,0.01077249]
[1765323083380,0.2262131,92833.0,92829.0,0.01077249]
[1765323083578,0.01087551,92834.0,92831.0,0.01077226]
[1765323083812,0.23708757,92834.0,92831.0,0.22621728]
[1765323083965,0.01087551,92834.0,92832.0,0.06252299]
[1765323084372,0.01087551,92834.0,92832.0,0.27796513]
[1765323085005,0.01087551,92834.0,92832.0,0.27996513]
[1765323085164,0.01087551,92834.0,92832.0,0.28396513]
[1765323085589,0.01087551,92834.0,92832.0,0.28196513]
[1765323085811,0.01087551,92834.0,92833.0,0.27796361]
[1765323086426,5.551e-05,92834.0,92833.0,0.27796361]
[1765323087228,5.551e-05,92834.0,92833.0,0.28196361]
[1765323087430,0.04030551,92834.0,92833.0,0.06652299]
[1765323087629,0.04030551,92834.0,92833.0,0.28196361]
[1765323088013,0.04030551,92834.0,92833.0,0.06852299]
[1765323088212,0.01639551,92834.0,92833.0,0.28396361]
[1765323089780,0.01639551,92834.0,92833.0,0.06852299]
[1765323090402,0.26759381,92834.0,92833.0,0.06852299]
[1765323092280,0.05215551,92834.0,92833.0,0.28396361]
[1765323092634,0.02824551,92834.0,92833.0,0.28396361]
[1765323093950,0.26759381,92834.0,92833.0,0.06852299]
[1765323094369,0.05215551,92834.0,92833.0,0.06852299]
[1765323094567,0.05215551,92834.0,92833.0,0.28396361]
[1765323094967,0.05215551,92834.0,92833.0,0.06852299]
[1765323095174,0.26759381,92834.0,92833.0,0.06852299]
[1765323095587,5.551e-05,92834.0,92833.0,0.28396361]
[1765323095759,0.05215551,92834.0,92833.0,0.06852299]
[1765323096884,0.26759381,92834.0,92833.0,0.06852299]
[1765323097090,0.02824551,92834.0,92833.0,0.28396361]
[1765323097299,0.02824551,92834.0,92833.0,0.06852299]
[1765323097502,0.05215551,92834.0,92833.0,0.06852299]
[1765323097859,0.05215551,92834.0,92833.0,0.28396361]
[1765323098106,0.05215551,92834.0,92833.0,0.06852299]
[1765323098321,5.551e-05,92834.0,92833.0,0.28396361]
[1765323099608,5.551e-05,92834.0,92833.0,0.06852299]
[1765323100688,0.21549381,92834.0,92833.0,0.06852299]
[1765323101195,0.25125381,92834.0,92833.0,0.06852299]
[1765323101442,0.26759381,92834.0,92833.0,0.06852299]
[1765323102154,0.01190551,92834.0,92833.0,0.28396361]
[1765323109454,0.03581551,92834.0,92833.0,0.28396361]
[1765323112131,5.551e-05,92834.0,92833.0,0.28396361]
[1765323118727,0.02352551,92834.0,92833.0,0.28396361]
[1765323119210,5.551e-05,92834.0,92833.0,0.28396361]
[1765323120585,5.551e-05,92834.0,92833.0,0.29398361]
[1765323120793,5.551e-05,92834.0,92833.0,0.28396361]
[1765323121030,5.551e-05,92834.0,92833.0,0.30400361]
[1765323121205,0.01134,92856.0,92855.0,0.27791257]
[1765323121403,0.01139558,92856.0,92855.0,0.27791257]
[1765323122825,0.01239558,92856.0,92855.0,0.27791257]
[1765323123697,0.01139558,92856.0,92855.0,0.27791257]
[1765323123882,0.01139558,92856.0,92855.0,0.27991257]
[1765323124087,5.558e-05,92856.0,92855.0,0.27991257]
[1765323127301,5.558e-05,92856.0,92855.0,0.29995257]
[1765323127503,5.558e-05,92856.0,92855.0,0.30995444]
[1765323129095,5.558e-05,92856.0,92855.0,0.31495444]
[1765323129298,5.558e-05,92856.0,92855.0,0.28491257]
[1765323129502,5.558e-05,92856.0,92855.0,0.30191257]
[1765323130332,5.558e-05,92856.0,92855.0,0.29991257]
[1765323131578,5.558e-05,92856.0,92855.0,0.30091257]
[1765323131919,5.558e-05,92856.0,92855.0,0.29591257]
[1765323132071,5.558e-05,92856.0,92855.0,0.29791257]
[1765323132803,5.558e-05,92856.0,92855.0,0.28091257]
[1765323134500,5.558e-05,92856.0,92855.0,0.29093257]
[1765323140841,0.02395558,92856.0,92855.0,0.28091257]
[1765323141064,0.04016558,92856.0,92855.0,0.28091257]
[1765323141725,0.25555284,92856.0,92855.0,0.06552299]
[1765323142126,0.25716571,92856.0,92855.0,0.06552299]
[1765323142353,0.04177845,92856.0,92855.0,0.06552299]
[1765323142555,0.04177845,92856.0,92855.0,0.27991257]
[1765323142782,0.01787845,92856.0,92855.0,0.27991257]
[1765323142948,0.00166845,92856.0,92855.0,0.28091257]
[1765323143778,0.00166845,92856.0,92855.0,0.27891257]
[1765323144279,0.00166845,92856.0,92855.0,0.28091257]
[1765323144616,5.558e-05,92856.0,92855.0,0.28091257]
[1765323152441,5.558e-05,92856.0,92855.0,0.06552299]
[1765323152442,0.03907558,92856.0,92855.0,0.06552299]
[1765323152900,0.03907558,92856.0,92855.0,0.28091257]
[1765323153557,0.03907558,92856.0,92855.0,0.06552299]
[1765323153776,0.03907558,92856.0,92855.0,0.28091257]
[1765323153994,0.25607571,92856.0,92855.0,0.06552299]
[1765323154198,0.25607571,92856.0,92855.0,0.003]
[1765323154405,0.27765093,92856.0,92855.0,0.003]
[1765323154865,0.27765093,92856.0,92855.0,0.06552299]
[1765323155061,0.27765093,92856.0,92855.0,0.06252299]
[1765323155272,0.22620161,92838.0,92835.0,0.22620708]
[1765323155394,0.02598,92836.0,92833.0,0.22621131]
[1765323155588,0.02361,92835.0,92833.0,0.22621131]
[1765323155816,0.23904598,92835.0,92834.0,0.06252299]
[1765323156216,0.21543835,92834.0,92832.0,0.06252299]
[1765323156440,0.24161795,92835.0,92833.0,0.06252299]
[1765323156638,0.02361,92835.0,92833.0,0.27796334]
[1765323156866,0.02361,92835.0,92834.0,0.27796129]
[1765323157011,0.01057,92838.0,92837.0,0.27795433]
[1765323158503,0.01057,92838.0,92837.0,0.27895433]
[1765323159487,0.01057,92838.0,92837.0,0.28195433]
[1765323160545,0.0351,92843.0,92842.0,0.27794273]
[1765323160966,0.05051,92843.0,92842.0,0.27794273]
[1765323161168,0.05051,92843.0,92842.0,0.06252299]
[1765323161314,0.26592742,92843.0,92842.0,0.06252299]
[1765323161670,0.05051,92843.0,92842.0,0.06252299]
[1765323161990,0.26592742,92843.0,92842.0,0.06252299]
[1765323162146,0.05051,92843.0,92842.0,0.06252299]
[1765323162510,0.05051,92843.0,92842.0,0.06452299]
[1765323162715,0.05051,92843.0,92842.0,0.06552299]
[1765323163867,0.26592742,92843.0,92842.0,0.06552299]
[1765323164073,0.05051,92843.0,92842.0,0.06552299]
[1765323164420,0.26592742,92843.0,92842.0,0.06552299]
[1765323165645,0.05051,92843.0,92842.0,0.06552299]
[1765323166347,0.26592742,92843.0,92842.0,0.06552299]
[1765323166759,0.05051,92843.0,92842.0,0.06552299]
[1765323166961,0.05051,92843.0,92842.0,0.28094273]
[1765323168558,0.01057,92844.0,92842.0,0.28094273]
[1765323168559,0.01057,92844.0,92843.0,0.27794041]
[1765323168897,0.21541046,92846.0,92845.0,0.06252299]
[1765323169103,0.2423151,92844.0,92843.0,0.06252299]
[1765323169494,0.2659251,92844.0,92843.0,0.06252299]
[1765323169683,0.05051,92844.0,92843.0,0.06252299]
[1765323170026,0.05051,92844.0,92842.0,0.06252299]
[1765323170027,0.23699264,92843.0,92842.0,0.06252299]
[1765323170226,0.02361,92843.0,92842.0,0.06252299]
[1765323170473,0.25443742,92843.0,92842.0,0.06252299]
[1765323170670,0.25443742,92843.0,92840.0,0.0732942]
[1765323170853,0.02361,92842.0,92840.0,0.28871757]
[1765323171053,0.01541,92841.0,92840.0,0.28871757]
[1765323171675,0.03902,92841.0,92840.0,0.28871757]
[1765323172285,0.03902,92841.0,92840.0,0.29071757]
[1765323173315,0.03902,92841.0,92840.0,0.29171757]
[1765323175300,0.01541,92841.0,92840.0,0.29171757]
[1765323176902,0.01541,92841.0,92840.0,0.06552299]
[1765323177053,0.03879,92841.0,92840.0,0.28094737]
[1765323177460,0.03879,92841.0,92840.0,0.06552299]
[1765323178064,0.03879,92841.0,92840.0,0.28094737]
[1765323178902,0.03879,92841.0,92840.0,0.06552299]
[1765323179113,0.03879,92841.0,92840.0,0.28094737]
[1765323180286,0.03879,92841.0,92840.0,0.06552299]
[1765323180470,0.03879,92841.0,92840.0,0.28094737]
[1765323180677,0.02504845,92856.0,92848.0,0.06252299]
[1765323181058,0.02504845,92856.0,92849.0,0.06252299]
[1765323181059,0.22717061,92855.0,92849.0,0.06252299]
[1765323181257,0.01866845,92856.0,92855.0,0.27791257]
[1765323181258,5.558e-05,92856.0,92855.0,0.27791257]
[1765323181452,5.558e-05,92856.0,92855.0,0.30493257]
[1765323181697,5.558e-05,92856.0,92855.0,0.62685656]
[1765323181824,5.558e-05,92856.0,92855.0,0.29491257]
[1765323182234,5.558e-05,92856.0,92855.0,0.30493257]
[1765323182436,5.558e-05,92856.0,92855.0,0.31795257]
[1765323182642,5.558e-05,92856.0,92855.0,0.37310926]
[1765323183042,5.558e-05,92856.0,92855.0,0.37510926]
[1765323183383,5.558e-05,92856.0,92855.0,0.31695257]
[1765323183582,5.558e-05,92856.0,92855.0,0.33815656]
[1765323184129,5.558e-05,92856.0,92855.0,0.34115656]
[1765323184831,5.558e-05,92856.0,92855.0,0.39931325]
[1765323184956,5.558e-05,92856.0,92855.0,0.33915656]
[1765323185322,5.558e-05,92856.0,92855.0,0.63185656]
[1765323185718,5.558e-05,92856.0,92855.0,0.66418249]
[1765323187437,5.558e-05,92856.0,92855.0,0.66118249]
[1765323187659,5.558e-05,92856.0,92855.0,0.66418249]
[1765323188171,5.558e-05,92856.0,92855.0,0.66318249]
[1765323188458,5.558e-05,92856.0,92855.0,0.66418249]
[1765323188945,5.558e-05,92856.0,92855.0,0.66818249]
[1765323191010,5.558e-05,92856.0,92855.0,0.81388249]
[1765323197871,0.01178,92891.0,92883.0,0.06252299]
[1765323198097,0.01178,92891.0,92865.0,0.2907]
[1765323198098,0.00011914,92891.0,92890.0,0.07254299]
[1765323198603,0.00011914,92891.0,92890.0,0.28785141]
[1765323199662,0.00111914,92891.0,92890.0,0.28785141]
[1765323200267,0.00011914,92891.0,92890.0,0.27783141]
[1765323200445,0.00211914,92891.0,92890.0,0.27783141]
[1765323200651,0.00511914,92891.0,92890.0,0.27783141]
[1765323201379,0.03544914,92891.0,92890.0,0.27783141]
[1765323201593,0.05356914,92891.0,92890.0,0.27783141]
[1765323202757,0.05456914,92891.0,92890.0,0.27783141]
[1765323203158,0.27148812,92891.0,92890.0,0.06252299]
[1765323203355,0.01076576,92887.0,92884.0,0.21532184]
[1765323203562,0.00161287,92887.0,92884.0,0.22608758]
[1765323203763,0.2387377,92886.0,92885.0,0.06252299]
[1765323204164,0.2548577,92886.0,92884.0,0.06252299]
[1765323204406,0.02342,92885.0,92884.0,0.06252299]
[1765323204752,0.05145,92885.0,92884.0,0.27784532]
[1765323204868,0.05145,92885.0,92884.0,0.06252299]
[1765323205281,0.26677001,92885.0,92883.0,0.06252299]
[1765323205494,0.03954,92884.0,92883.0,0.06252299]
[1765323206097,0.03954,92884.0,92883.0,0.27784764]
[1765323206830,0.04054,92884.0,92883.0,0.27784764]
[1765323207427,0.04254,92884.0,92883.0,0.27784764]
[1765323208915,0.01912,92884.0,92883.0,0.27784764]
[1765323209122,0.003,92884.0,92883.0,0.27784764]
[1765323209300,0.04213,92884.0,92883.0,0.27784764]
[1765323210313,0.003,92884.0,92883.0,0.27784764]
[1765323215848,0.003,92884.0,92883.0,0.29788764]
[1765323216271,0.003,92884.0,92883.0,0.28786764]
[1765323216750,0.001,92884.0,92883.0,0.28786764]
[1765323217172,0.00011914,92891.0,92890.0,0.27783141]
[1765323218938,0.00211914,92891.0,92890.0,0.27783141]
[1765323219940,0.00211914,92891.0,92890.0,0.29787141]
[1765323220644,0.00211914,92891.0,92890.0,0.28785141]
[1765323220819,0.00211914,92891.0,92890.0,0.27783141]
[1765323221628,0.00011914,92891.0,92890.0,0.27783141]
[1765323221864,0.00111914,92891.0,92890.0,0.27783141]
[1765323222921,0.05199914,92891.0,92890.0,0.27783141]
[1765323226687,0.02916914,92891.0,92890.0,0.27783141]
[1765323226812,0.01286914,92891.0,92890.0,0.27783141]
[1765323228473,0.02916914,92891.0,92890.0,0.27783141]
[1765323228882,0.01286914,92891.0,92890.0,0.27783141]
[1765323231317,0.05361201,92891.0,92890.0,0.06252299]
[1765323231525,0.26891812,92891.0,92890.0,0.06252299]
[1765323231693,0.27968342,92891.0,92888.0,0.22607871]
[1765323231893,0.0163,92889.0,92888.0,0.07328864]
[1765323232190,0.0163,92889.0,92888.0,0.28859952]
[1765323232390,0.03913,92889.0,92888.0,0.28859952]
[1765323233145,0.001,92889.0,92888.0,0.28859952]
[1765323237469,0.04068,92889.0,92888.0,0.28859952]
[1765323239379,0.0530584,92889.0,92888.0,0.06252299]
[1765323239582,0.0530584,92889.0,92887.0,0.06252299]
[1765323239782,0.03968,92888.0,92887.0,0.06252299]
[1765323239982,0.03968,92888.0,92887.0,0.27783837]
[1765323241058,0.03968,92888.0,92886.0,0.22608141]
[1765323241059,0.05044565,92888.0,92886.0,0.27784004]
[1765323241188,0.03968,92887.0,92886.0,0.27784004]
[1765323241574,0.04129287,92887.0,92886.0,0.27784004]
[1765323242230,0.00161287,92887.0,92886.0,0.27784004]
[1765323242428,0.00161287,92887.0,92886.0,0.28786004]
[1765323243155,0.00261287,92887.0,92886.0,0.28786004]
[1765323243569,0.001,92887.0,92886.0,0.28786004]
[1765323244405,0.001,92887.0,92886.0,0.29788004]
[1765323245551,0.001,92887.0,92886.0,0.31488004]
[1765323245733,0.001,92887.0,92886.0,0.39387248]
[1765323246129,0.001,92887.0,92886.0,0.33608403]
[1765323247433,0.001,92887.0,92886.0,0.32606403]
[1765323247633,0.001,92887.0,92886.0,0.30486004]
[1765323248960,0.001,92887.0,92886.0,0.33608403]
[1765323253227,0.001,92887.0,92886.0,0.61558191]
[1765323253770,0.00011914,92891.0,92890.0,0.2990354]
[1765323253966,0.00011914,92891.0,92890.0,0.3090554]
[1765323254209,0.00011914,92891.0,92890.0,0.3190754]
[1765323254726,0.02157489,92908.0,92906.0,0.27779323]
[1765323254901,0.01081156,92908.0,92906.0,0.27779323]
[1765323255075,0.03555156,92908.0,92906.0,0.27779323]
[1765323255477,0.03555156,92908.0,92907.0,0.27779202]
[1765323255918,0.03755156,92908.0,92907.0,0.06252299]
[1765323257000,0.03555156,92908.0,92907.0,0.27779202]
[1765323257373,0.03755156,92908.0,92907.0,0.27779202]
[1765323257573,0.01281156,92908.0,92907.0,0.27779202]
[1765323257912,0.01381156,92908.0,92907.0,0.27779202]
[1765323260600,0.01404022,92908.0,92907.0,0.27779202]
[1765323261837,0.00322866,92908.0,92907.0,0.27779202]
[1765323265247,0.00322866,92908.0,92907.0,0.29899601]
[1765323265369,0.00322866,92908.0,92907.0,0.27779202]
[1765323266097,0.00322866,92908.0,92907.0,0.28890202]
[1765323266519,0.00322866,92908.0,92907.0,0.27779202]
[1765323266916,0.00222866,92908.0,92907.0,0.27779202]
[1765323267081,0.00022866,92908.0,92907.0,0.27779202]
[1765323267287,0.00122866,92908.0,92907.0,0.27779202]
[1765323273283,0.00122866,92908.0,92907.0,0.30001202]